Cogmind - Beta 12 X1 @@@ ROGUE MODE // 2022.08.17 @ 16:19:48 Player: Exp. Geonium Core Result: Destroyed by Combat Programmer with EMDS Performance ------------- Evolutions (9) 4500 Regions Visited (28) 5600 Robots Destroyed (172) 860 Value Destroyed (11385) 11385 Prototype IDs (34) 680 Alien Tech Used (0) 0 Bonus (16353) 16353 TOTAL SCORE: 39378 Bonus ------- High Alert Combat Kills 680 Follower Combat Kills 8323 Entered Garrisons 2000 Used RIF Installer 6000 Aligned with FarCom 300 Friendly Fire -950 Cogmind --------- Core Integrity 0/1600 Matter 109/300 Energy 59/100 System Corruption 16% Temperature Cool (0) Movement Core (700) Ox13 Location -1/Command Parts ------- > --- POWER (1) -------- (None) > --- PROPULSION (4) --- (None) > --- UTILITY (18) ----- High-capacity Storage Unit Experimental Optical Array Advanced Targeting Computer Advanced Target Analyzer Experimental Core Analyzer Graphene Brace Relay Coupler [C] (9) Relay Coupler [Demolisher] (26) Relay Coupler [Hunter] (5) > --- WEAPON (2) ------- (None) > --- INVENTORY (20) --- Micro Antimatter Reactor Myomer Leg Myomer Leg High-capacity Storage Unit Relay Coupler [Sentry] (23) Relay Coupler [Demolisher] (28) Relay Coupler [Proto] (9) Heavy Machine Gun Heavy Machine Gun KE Penetrator Advanced Remote Datajack Enhanced Force Lance Enhanced Force Lance Peak State ------------ > --- POWER ------------ Light Quantum Reactor > --- PROPULSION ------- Biometal Heavy Treads Biometal Heavy Treads > --- UTILITY ---------- Advanced Heat Sink High-capacity Storage Unit Small Battery Small Battery Experimental Optical Array Advanced Targeting Computer Advanced Target Analyzer Advanced Target Analyzer Advanced Target Analyzer Experimental Core Analyzer Advanced Weapon Cycler Advanced Phase Shifter Graphene Brace Relay Coupler [C] Relay Coupler [Sentry] Relay Coupler [Demolisher] Relay Coupler [Hunter] Relay Coupler [Proto] > --- WEAPON ----------- Gamma Rifle Enhanced Force Lance > --- INVENTORY -------- Micro Antimatter Reactor Micro Antimatter Reactor Biometal Heavy Treads High-capacity Storage Unit Relay Coupler [C] Relay Coupler [C] Relay Coupler [C] Relay Coupler [Sentry] Relay Coupler [Sentry] Relay Coupler [Demolisher] Relay Coupler [Proto] Relay Coupler [Proto] Heavy Machine Gun KE Penetrator Advanced Datajack Advanced Remote Datajack Advanced Remote Datajack Advanced Remote Datajack Enhanced Force Lance [Rating: 180] Favorites ----------- Power Micro Fission Core Engine Ion Engine Power Core Micro Fission Core Reactor Reinforced Quantum Reactor Propulsion Improved Heavy Treads Treads Improved Heavy Treads Leg Centrium Leg Wheel Armored Wheel Utility Relay Coupler [Sentry] Device Heat Sink Storage Large Storage Unit Processor Advanced Target Analyzer Hackware Relay Coupler [Sentry] Protection Layered Heavy Armor Plating Weapon Improved Remote Datajack Energy Gun Improved Medium Laser Energy Cannon Ion Cannon Ballistic Gun Autogun Ballistic Cannon Bore Cannon Launcher Precision Grenade Launcher Special Weapon Improved Remote Datajack Impact Weapon Powered Hammer Slashing Weapon Axe Piercing Weapon Enhanced Force Lance Special Melee Weapon Datajack Build | -11 -10 -10 -9 -9 -9 -8 -8 -8 -7 -7 -6 -6 -6 -6 -5 -5 -4 -4 -3 -3 -3 -3 -2 -2 -2 -2 -1 -1 ------- Run | Scr Mat Min Mat Min Exi Min Mat Gar Fac Gar Fac Gar Fac Gar Fac Gar Fac Gar Res Gar Res Gar Res Gar Res Gar Acc Com Slots Evolved 18 | . . . 2 . . . 2 . 2 . 2 . . . 2 . 2 . 2 . . . 2 . . . 2 . Power . | . . . . . . . . . . . . . . . . . . . . . . . . . . . . . Propulsion 2 | . . . . . . . 2 . . . . . . . . . . . . . . . . . . . . . Utility 16 | . . . 2 . . . . . 2 . 2 . . . 2 . 2 . 2 . . . 2 . . . 2 . Weapon . | . . . . . . . . . . . . . . . . . . . . . . . . . . . . . Parts Attached 352 | 2 . . 18 . . . 4 9 14 1 14 19 10 9 20 38 11 36 5 29 . 14 3 15 1 19 35 26 Power 16 | . . . 1 . . . . . 1 . 2 . 1 . 1 2 . 3 . 1 . . . 1 . . 2 1 Engine 4 | . . . 1 . . . . . . . 2 . 1 . . . . . . . . . . . . . . . Core 7 | . . . . . . . . . 1 . . . . . 1 1 . 3 . 1 . . . . . . . . Reactor 5 | . . . . . . . . . . . . . . . . 1 . . . . . . . 1 . . 2 1 Propulsion 70 | 2 . . 5 . . . 3 2 . . 5 2 2 4 3 10 1 7 4 7 . 2 . 1 1 . 4 5 Treads 37 | 2 . . 3 . . . 3 2 . . 5 . . 4 3 1 . 4 1 . . 2 . 1 1 . 4 1 Leg 32 | . . . 2 . . . . . . . . 2 2 . . 9 1 2 3 7 . . . . . . . 4 Wheel 1 | . . . . . . . . . . . . . . . . . . 1 . . . . . . . . . . Hover . | . . . . . . . . . . . . . . . . . . . . . . . . . . . . . Flight . | . . . . . . . . . . . . . . . . . . . . . . . . . . . . . Utility 155 | . . . 6 . . . 1 3 12 . 3 7 2 2 11 16 3 14 . 12 . 12 3 9 . 16 19 4 Device 22 | . . . 3 . . . . 1 . . . . . . . 1 2 1 . . . . . . . 3 9 2 Storage 9 | . . . 1 . . . . . . . . . . 1 . 1 . 1 . . . . . 1 . . 4 . Processor 12 | . . . 2 . . . . . 1 . 1 . . . . . . . . . . . . . . 3 5 . Hackware 107 | . . . . . . . . 2 11 . 2 7 1 1 11 14 1 11 . 11 . 12 2 8 . 10 1 2 Protection 5 | . . . . . . . 1 . . . . . 1 . . . . 1 . 1 . . 1 . . . . . Artifact . | . . . . . . . . . . . . . . . . . . . . . . . . . . . . . Weapon 111 | . . . 6 . . . . 4 1 1 4 10 5 3 5 10 7 12 1 9 . . . 4 . 3 10 16 Energy Gun 9 | . . . 3 . . . . 4 . . . . . . . . . . . 1 . . . . . . 1 . Energy Cannon 3 | . . . . . . . . . . 1 1 1 . . . . . . . . . . . . . . . . Ballistic Gun 36 | . . . 3 . . . . . . . 1 4 2 1 . . 1 5 . 3 . . . 2 . . 4 10 Ballistic Cannon 4 | . . . . . . . . . 1 . 1 . . . 2 . . . . . . . . . . . . . Launcher 8 | . . . . . . . . . . . . 1 . . 1 2 2 2 . . . . . . . . . . Special Weapon 24 | . . . . . . . . . . . . 2 . . 1 5 2 2 1 3 . . . 1 . 2 2 3 Impact Weapon 3 | . . . . . . . . . . . . 1 1 1 . . . . . . . . . . . . . . Slashing Weapon 4 | . . . . . . . . . . . . . . . . . 2 2 . . . . . . . . . . Piercing Weapon 11 | . . . . . . . . . . . . . . . 1 3 . . . 1 . . . 1 . . 3 2 Special Melee Weapon 9 | . . . . . . . . . . . 1 1 2 1 . . . 1 . 1 . . . . . 1 . 1 Unidentified Prototypes 6 | . . . 1 . . . . . . . . . . . . 1 . . . . . . . . . 4 . . Corrupted Parts 5 | . . . . . . . . . . . . . . 5 . . . . . . . . . . . . . . System Corruption 48 | . . . . . . . . . . . . . . 48 . . . . . . . . . . . . . . Parts Lost 122 | . . . 9 . . . 1 . . . 4 13 2 2 15 . 7 19 2 4 . 1 . 2 . 1 15 25 Power 9 | . . . 1 . . . . . . . 1 1 . . 2 . 1 1 . . . . . . . . 1 1 Propulsion 33 | . . . 2 . . . 1 . . . 2 4 1 . 5 . 1 7 . 2 . . . . . . 2 6 Utility 48 | . . . 1 . . . . . . . . 3 1 1 5 . 3 7 1 . . 1 . 2 . 1 10 12 Weapon 32 | . . . 5 . . . . . . . 1 5 . 1 3 . 2 4 1 2 . . . . . . 2 6 Highest Loss Streak 19 | . . . 4 . . . 1 . . . 2 12 2 1 7 . 3 6 1 1 . 1 . 1 . 1 9 19 To Critical Strikes 2 | . . . . . . . . . . . . . . . . . 1 1 . . . . . . . . . . Average Slot Usage (%) 82 | . 85 85 85 100 100 100 87 81 71 74 81 88 88 82 58 91 87 80 72 87 95 84 80 77 86 88 83 87 Engine 2 | . 14 14 9 11 11 11 9 9 1 . 2 4 4 6 3 . . . . . . . . . . . . . Core 2 | . . . . . . . . . 5 7 2 . . . . . . 4 4 4 4 4 4 3 . . . . Reactor 1 | . . . . . . . . . . . . . . . . 3 4 . . . . . . . 4 4 3 3 Treads 10 | . 28 28 17 22 22 22 23 25 15 15 14 18 . 8 9 . . 10 1 . . 7 8 8 8 8 7 6 Leg 5 | . . . 2 . . . . . . . . 2 19 6 . 19 19 4 13 18 19 3 . . . . . 1 Device 5 | . . . 12 22 22 22 10 8 2 . . . . . . 3 12 4 . . . . . . . 7 14 16 Storage 5 | . 14 14 11 11 11 11 9 9 7 7 6 4 . 3 4 . 5 3 4 4 4 4 4 3 4 4 6 11 Processor 3 | . . . 11 11 11 11 9 1 2 . 5 2 . . . . . . . . . . . . . 8 13 23 Hackware 34 | . . . . . . . . 14 28 30 35 42 48 36 25 49 36 40 38 49 52 49 46 46 56 44 28 16 Protection 1 | . . . . . . . 7 2 . . . . 2 6 3 . . 1 . . 4 4 6 5 4 . . . Energy Gun 2 | . . . 7 22 22 22 18 11 1 . . . . . . . . . . 1 . . . . . . . . Ballistic Gun 1 | . 28 28 12 . . . . . . . . 3 1 . . . . 4 . 1 . . . . . . 1 3 Special Weapon 2 | . . . . . . . . . . . . 1 . . . 4 3 1 2 3 4 4 4 3 4 3 2 1 Piercing Weapon 1 | . . . . . . . . . . . . . . . . 4 3 . . . 4 4 4 3 4 4 3 2 Naked Turns . | . . . . . . . . . . . . . . . . . . . . . . . . . . . . . Heaviest Build 171 | 14 14 14 33 33 33 33 33 35 35 40 44 34 19 157 171 48 51 56 31 57 57 57 77 82 82 82 116 81 Greatest Support 150 | 40 40 40 40 40 40 40 80 150 150 150 150 88 62 150 150 96 85 70 90 90 90 140 140 145 145 135 150 150 Greatest Overweight (x) 1 | . . . 1 . . . 1 . . . . . . 1 1 1 . 1 . . . 1 . . . . . 1 Average Overweight (x) . | . . . . . . . . . . . . . . . . . . . . . . . . . . . . . Largest Inventory Capacity 30 | 8 8 8 15 15 15 15 15 15 15 15 15 15 5 30 30 15 15 15 15 15 15 15 15 15 15 15 20 20 Average Capacity 14 | 8 8 8 11 15 15 15 15 15 15 15 15 13 5 21 25 6 15 11 15 15 15 15 15 13 15 15 18 20 Most Carried 30 | 6 4 6 15 14 14 14 15 15 15 15 15 15 5 29 30 14 15 15 15 15 15 15 15 15 15 15 20 20 Average Carried 13 | 4 4 4 9 14 13 14 14 13 11 13 14 12 3 13 24 6 14 11 14 14 15 14 14 11 15 14 17 18 Final Capacity 30 | 8 8 8 15 15 15 15 15 15 15 15 15 5 5 30 5 15 15 15 15 15 15 15 15 15 15 15 20 20 Final Carried 25 | 4 4 6 14 14 14 14 15 15 11 15 15 5 3 25 5 14 14 15 15 15 15 15 15 15 15 15 20 13 Class Distribution -------------------- 58% | Botlord-Mutant 12% | Bothacker-Mutant 9% | Commander-Mutant 9% | Hacker-Mutant 8% | Scavenger-Mutant Dominant Class ---------------- Mutant | -10/Materials Mutant | -10/Mines Scavenger-Mutant | -9/Materials Scavenger-Mutant | -9/Mines Scavenger-Mutant | -9/Exiles Scavenger-Mutant | -8/Mines Scavenger-Mutant | -8/Materials Hacker-Mutant | -8/Garrison Hacker-Mutant | -7/Factory Commander-Mutant | -7/Garrison Bothacker-Mutant | -6/Factory Bothacker-Mutant | -6/Garrison Bothacker-Mutant | -6/Factory Bothacker-Mutant | -6/Garrison Bothacker-Mutant | -5/Factory Botlord-Mutant | -5/Garrison Botlord-Mutant | -4/Factory Botlord-Mutant | -4/Garrison Botlord-Mutant | -3/Research Botlord-Mutant | -3/Garrison Botlord-Mutant | -3/Research Botlord-Mutant | -3/Garrison Botlord-Mutant | -2/Research Botlord-Mutant | -2/Garrison Botlord-Mutant | -2/Research Botlord-Mutant | -2/Garrison Botlord-Mutant | -1/Access Botlord-Mutant | -1/Command Resources | -11 -10 -10 -9 -9 -9 -8 -8 -8 -7 -7 -6 -6 -6 -6 -5 -5 -4 -4 -3 -3 -3 -3 -2 -2 -2 -2 -1 -1 ----------- Run | Scr Mat Min Mat Min Exi Min Mat Gar Fac Gar Fac Gar Fac Gar Fac Gar Fac Gar Res Gar Res Gar Res Gar Res Gar Acc Com Matter Collected 7811 | 220 . 24 325 . . . 35 90 309 103 284 168 50 346 497 687 377 794 55 551 . 399 109 504 23 338 1028 495 Remotely . | . . . . . . . . . . . . . . . . . . . . . . . . . . . . . Salvage Created 8980 | . . 81 725 . . . 63 1607 877 53 730 429 76 764 613 297 493 400 . 85 . . 34 383 . 64 778 428 Parts 394 | . . 8 44 . . . 3 54 30 3 36 10 2 8 26 9 33 20 . 1 . . 4 12 . 4 62 25 Haulers Intercepted 6 | . . . 4 . . . . . 1 . . . . . . . 1 . . . . . . . . . . . Recyclers Shooed 8 | . . . 2 . . . . . 1 . . . 1 . 3 . 1 . . . . . . . . . . . Parts Field Recycled . | . . . . . . . . . . . . . . . . . . . . . . . . . . . . . Retrieved Matter . | . . . . . . . . . . . . . . . . . . . . . . . . . . . . . Parts Self-Destructed . | . . . . . . . . . . . . . . . . . . . . . . . . . . . . . Prevented . | . . . . . . . . . . . . . . . . . . . . . . . . . . . . . Kills | -11 -10 -10 -9 -9 -9 -8 -8 -8 -7 -7 -6 -6 -6 -6 -5 -5 -4 -4 -3 -3 -3 -3 -2 -2 -2 -2 -1 -1 ------- Run | Scr Mat Min Mat Min Exi Min Mat Gar Fac Gar Fac Gar Fac Gar Fac Gar Fac Gar Res Gar Res Gar Res Gar Res Gar Acc Com Combat Hostiles Destroyed 125 | . . 3 12 . . . 3 28 10 1 9 12 1 1 10 2 4 12 . . . . . 2 . 1 9 5 Melee 11 | . . . . . . . . . . . . . . . . 2 1 2 . . . . . 1 . 1 3 1 Guns 75 | . . 3 12 . . . 3 28 6 . . 6 1 . . . . 5 . . . . . 1 . . 6 4 Cannons 23 | . . . . . . . . . 4 1 9 1 . . 8 . . . . . . . . . . . . . AOE 15 | . . . . . . . . . . . . 5 . . 2 . 3 5 . . . . . . . . . . Classes Destroyed 15 | . . 2 7 . . . . . 1 . 1 1 . . 1 1 1 . . . . . . . . . . . Worker 16 | . . . 1 . . . . . 4 . 1 . . . . . 6 . . . . . 2 . . . 1 1 Builder 9 | . . . 1 . . . . . . . . . 1 . 3 . 4 . . . . . . . . . . . Hauler 6 | . . . 4 . . . . . 1 . . . . . . . 1 . . . . . . . . . . . Recycler 9 | . . 1 1 . . . . . 3 . 1 . . . 1 . 1 . . . . . . . . . 1 . Watcher 5 | . . . 1 . . . 1 . 1 . . . . . 2 . . . . . . . . . . . . . Swarmer 34 | . . 3 3 . . . 3 15 . . . 2 . . . . 1 7 . . . . . . . . . . Grunt 41 | . . . 6 . . . . 12 7 1 4 6 . 1 4 . . . . . . . . . . . . . Brawler 2 | . . . . . . . . . . . 2 . . . . . . . . . . . . . . . . . Duelist 2 | . . . 1 . . . . . . . 1 . . . . . . . . . . . . . . . . . Sentry 13 | . . . 2 . . . . 1 2 . 1 2 1 . 2 . . 2 . . . . . . . . . . Specialist 2 | . . . . . . . . . . . . . . . . 1 1 . . . . . . . . . . . Hunter 9 | . . . . . . . . . . . . . . . . . 2 . . . . . . 1 . . 2 4 Programmer 22 | . . . . . . . . . 2 . 2 . . . 3 1 1 3 . . . . . 1 . 1 7 1 Behemoth 1 | . . . . . . . . . . . . . . . 1 . . . . . . . . . . . . . Assembled 2 | . . . . . . . . . . . . 2 . . . . . . . . . . . . . . . . Butcher 1 | . . . . . . . . . . . . . . . . . . . . 1 . . . . . . . . Best Kill Streak 11 | . . 4 5 . . . 3 11 6 1 4 6 1 1 4 1 10 7 . . . . 2 1 . 1 3 2 Combat Bots Only 11 | . . 3 3 . . . 3 11 3 1 4 6 1 1 3 1 2 7 . . . . . 1 . 1 3 2 Max Kills in Single Turn 3 | . . 1 2 . . . 1 1 2 1 2 3 1 1 2 1 2 3 . 1 . . 1 1 . 1 1 1 Gunslinging . | . . . . . . . . . . . . . . . . . . . . . . . . . . . . . Exploded 3 | . . . . . . . . . . . . 3 . . 1 . 1 3 . . . . . . . . . . Melee 1 | . . . . . . . . . . . . . . . . 1 1 1 . . . . . 1 . 1 1 1 Uniques/NPCs Destroyed . | . . . . . . . . . . . . . . . . . . . . . . . . . . . . . Combat | -11 -10 -10 -9 -9 -9 -8 -8 -8 -7 -7 -6 -6 -6 -6 -5 -5 -4 -4 -3 -3 -3 -3 -2 -2 -2 -2 -1 -1 -------- Run | Scr Mat Min Mat Min Exi Min Mat Gar Fac Gar Fac Gar Fac Gar Fac Gar Fac Gar Res Gar Res Gar Res Gar Res Gar Acc Com Damage Taken 25879 | . 235 81 1201 . . . 59 569 480 169 1066 1883 322 363 3472 200 1010 2689 430 468 . 603 181 1361 34 655 4340 4008 Core 4534 | . 39 38 216 . . . . 80 118 . 150 398 49 157 559 20 146 558 183 107 . 44 . 20 . 24 595 1033 Absorbed by Shields 300 | . . . . . . . . . . . . . . . . . . . . 67 . 143 71 19 . . . . Redirected to Shielding 6 | . . . . . . . . 6 . . . . . . . . . . . . . . . . . . . . Core Remaining (%) 64 | 100 . 69 . . . 46 . 85 . 83 . . . 11 . 42 . 38 . . . 74 . . . 96 . . Volleys Fired 720 | . . 4 73 . . . 9 42 21 13 46 38 5 4 44 20 34 62 2 56 . 40 12 37 6 20 73 59 Largest 2 | . . 2 2 . . . 2 2 1 1 2 2 1 1 2 1 1 2 1 2 . 1 1 2 1 1 2 2 Hottest 117 | . . 40 112 . . . 112 112 57 60 117 90 30 30 114 5 36 48 5 86 . 7 7 66 7 10 75 108 Shots Fired 1070 | . . 8 133 . . . 18 163 49 13 53 54 5 4 65 20 34 92 2 58 . 40 12 47 6 20 86 88 Gun 605 | . . 8 133 . . . 18 163 26 . 4 26 5 4 . . 7 72 . 32 . . . 20 . . 28 59 Cannon 158 | . . . . . . . . . 23 13 49 13 . . 60 . . . . . . . . . . . . . Launcher 27 | . . . . . . . . . . . . 6 . . 3 . 12 6 . . . . . . . . . . Special 280 | . . . . . . . . . . . . 9 . . 2 20 15 14 2 26 . 40 12 27 6 20 58 29 Kinetic 455 | . . 8 90 . . . . . 23 9 25 26 5 4 60 . 7 72 . 23 . . . 20 . . 27 56 Thermal 304 | . . . 43 . . . 18 163 26 4 28 13 . . . . . . . 9 . . . . . . . . Explosive 27 | . . . . . . . . . . . . 6 . . 3 . 12 6 . . . . . . . . . . Electromagnetic 4 | . . . . . . . . . . . . . . . . . . . . . . . . . . . 1 3 Robot Hit Streak 36 | . . 2 12 . . . 3 36 17 1 5 17 4 8 17 12 9 11 1 11 . 8 17 8 1 6 11 11 Robot Miss Streak 5 | . . 2 5 . . . 5 4 2 3 4 3 1 . 5 1 4 4 1 2 . 3 1 3 3 1 3 3 Penetration Max 2 | . . . . . . . . . 1 . 1 2 1 . . . . . . . . . . . . . . 1 Secondary Targets 6 | . . 1 1 . . . . . . . . 1 . . . . . 1 . . . . . . . . 1 1 Max Gunslinging Chain 1 | . . 1 1 . . . . . . . . 1 . . . . . 1 . . . . . . . . 1 1 Autonomous 106 | . . . . . . . . 79 27 . . . . . . . . . . . . . . . . . . . Shots Hit Robots 884 | . . 5 94 . . . 6 139 38 3 30 34 9 17 52 36 33 78 6 39 . 30 14 48 2 27 78 66 Core Hits 320 | . . 3 34 . . . 3 70 21 1 17 27 3 1 22 5 22 39 1 7 . . 2 7 . 3 16 16 Critical Kills 17 | . . . . . . . . . 5 1 6 . . . . . . . . . . . . . . . 2 3 Critical Parts Destroyed 18 | . . . . . . . . . 3 2 4 2 1 4 . . . . . . . . . . . . 1 1 Critical Strikes 72 | . . . 2 . . . . 7 9 3 10 2 1 4 13 1 . 3 2 . . . . 2 . 2 6 5 Burn 9 | . . . 2 . . . . 7 . . . . . . . . . . . . . . . . . . . . Destroy 31 | . . . . . . . . . 9 3 10 2 . . . . . . . . . . . . . . 3 4 Blast 13 | . . . . . . . . . . . . . . . 13 . . . . . . . . . . . . . Smash 5 | . . . . . . . . . . . . . 1 4 . . . . . . . . . . . . . . Sever 5 | . . . . . . . . . . . . . . . . . . 3 2 . . . . . . . . . Impale 9 | . . . . . . . . . . . . . . . . 1 . . . . . . . 2 . 2 3 1 Melee Attacks 310 | . . . . . . . . . . . 9 1 11 28 7 52 27 29 7 8 2 29 3 23 . 28 36 10 Impact 30 | . . . . . . . . . . . . . 2 27 1 . . . . . . . . . . . . . Slashing 39 | . . . . . . . . . . . . . . . . . 5 27 7 . . . . . . . . . Piercing 209 | . . . . . . . . . . . . . . . 3 52 22 . . 6 2 29 3 23 . 24 36 9 Sneak Attacks 31 | . . . . . . . . . . . 1 . 1 . 4 4 10 2 . . . 2 3 . . . 4 . Combat Hostiles 11 | . . . . . . . . . . . . . . . . 3 2 2 . . . 2 1 . . . 1 . Follow-up Attacks . | . . . . . . . . . . . . . . . . . . . . . . . . . . . . . Damage Inflicted 21213 | . . 73 1263 18 . 8 115 3215 1099 63 843 1689 170 988 2136 994 2005 2112 165 284 . 169 237 1119 5 414 1185 844 Guns 8714 | . . 61 1263 . . . 103 3215 609 . 99 493 102 84 . . 131 755 . 260 . . . 330 . . 474 735 Cannons 2940 | . . . . . . . . . 457 63 735 163 . . 1522 . . . . . . . . . . . . . Explosions 3074 | . . . . . . . . . . . . 1033 . . 368 . 1141 532 . . . . . . . . . . Melee 6287 | . . . . . . . . . . . . . 68 904 209 994 733 816 165 . . 169 237 789 . 414 680 109 Ramming 198 | . . 12 . 18 . 8 12 . 33 . 9 . . . 37 . . 9 . 24 . . . . 5 . 31 . Kinetic 6588 | . . 61 771 . . . . . 457 63 474 493 102 84 1522 . 131 755 . 167 . . . 330 . . 474 704 Thermal 5149 | . . . 492 . . . 103 3215 609 . 360 163 . . 114 . . . . 93 . . . . . . . . Explosive 2960 | . . . . . . . . . . . . 1033 . . 254 . 1141 532 . . . . . . . . . . Electromagnetic 31 | . . . . . . . . . . . . . . . . . . . . . . . . . . . . 31 Impact 972 | . . . . . . . . . . . . . 68 904 . . . . . . . . . . . . . . Slashing 1202 | . . . . . . . . . . . . . . . . . 221 816 165 . . . . . . . . . Piercing 4113 | . . . . . . . . . . . . . . . 209 994 512 . . . . 169 237 789 . 414 680 109 Highest Corruption 49 | . . . . . . . . . 3 3 . . . 49 3 3 . 8 . 2 2 2 . 3 3 3 7 15 Average Corruption 3 | . . . . . . . . . 1 3 . . . 23 2 3 . 7 . 1 2 2 . 2 3 3 4 7 Corruption Purged . | . . . . . . . . . . . . . . . . . . . . . . . . . . . . . Corruption Blocked . | . . . . . . . . . . . . . . . . . . . . . . . . . . . . . Effects 208 | . . . . . . . . . 18 10 . . . 19 3 32 . 32 . 8 . 22 . 16 3 17 12 16 Message Errors 53 | . . . . . . . . . 6 . . . . 8 1 6 . 6 . . . 6 . 7 1 3 3 6 Matter Fused 53 | . . . . . . . . . 4 4 . . . 4 2 5 . 10 . 3 . 8 . 2 . 7 2 2 Heat Flow Errors 34 | . . . . . . . . . 2 2 . . . 3 . 7 . 5 . 1 . 5 . 2 1 3 1 2 Energy Discharges 17 | . . . . . . . . . 3 . . . . 1 . 2 . 3 . . . 1 . 3 . 1 1 2 Data Loss (minor) 32 | . . . . . . . . . 1 2 . . . 2 . 10 . 4 . 3 . 1 . 2 1 . 3 3 Data Loss (major) 11 | . . . . . . . . . . 2 . . . 1 . 2 . 2 . . . 1 . . . 1 1 1 Misfires 3 | . . . . . . . . . 2 . . . . . . . . 1 . . . . . . . . . . Alerts 4 | . . . . . . . . . . . . . . . . . . 1 . 1 . . . . . 2 . . Weapon Failures 1 | . . . . . . . . . . . . . . . . . . . . . . . . . . . 1 . Overload Shots . | . . . . . . . . . . . . . . . . . . . . . . . . . . . . . Overflow Damage 1614 | . . . . . . . . . . 6 28 20 68 542 207 104 257 15 . . . . 26 98 . 77 115 51 Projectiles 63 | . . . . . . . . . . 6 28 . . . 29 . . . . . . . . . . . . . Explosions 191 | . . . . . . . . . . . . 20 . . 74 . 97 . . . . . . . . . . . Melee 1360 | . . . . . . . . . . . . . 68 542 104 104 160 15 . . . . 26 98 . 77 115 51 Knockbacks 12 | . . . . . . . . . 1 . . . . 1 10 . . . . . . . . . . . . . Impact 1 | . . . . . . . . . . . . . . 1 . . . . . . . . . . . . . . Kinetic 11 | . . . . . . . . . 1 . . . . . 10 . . . . . . . . . . . . . Secondary . | . . . . . . . . . . . . . . . . . . . . . . . . . . . . . Self-Inflicted Damage 153 | . . . . . . . . . . . . 34 . . 39 . 28 52 . . . . . . . . . . Shots 5 | . . . . . . . . . . . . 2 . . 1 . 1 1 . . . . . . . . . . Rammed 24 | . . 3 . 2 . 1 1 . 6 . 2 . . . 2 . . 4 . . . . . . 1 . 2 . Targets Rammed 35 | . . 4 . 2 . 1 2 . 9 . 2 . . . 2 . . 4 . 6 . . . . 1 . 2 . Kicked 6 | . . . . . . . . . . . . . . . . . . . . 6 . . . . . . . . Crushed 5 | . . 1 . . . . 1 . 3 . . . . . . . . . . . . . . . . . . . Highest Temperature 270 | . . . 75 . . . 21 39 161 231 48 52 2 232 270 263 23 270 . 94 . 219 . 173 109 87 139 265 Average Temperature 56 | . . . 16 . . . 11 13 39 82 16 26 2 103 92 103 10 109 . 25 . 101 . 34 57 58 77 135 Received Heat Transfer 3514 | . 24 . 399 . . . . 243 177 135 162 702 36 45 468 54 172 267 42 72 . 49 22 157 . 63 126 99 Effects 3 | . . . . . . . . . . . . . . 2 . . . . . . . . . . . . . 1 Energy Bleed 3 | . . . . . . . . . . . . . . 2 . . . . . . . . . . . . . 1 Siege Activations . | . . . . . . . . . . . . . . . . . . . . . . . . . . . . . Robots Corrupted . | . . . . . . . . . . . . . . . . . . . . . . . . . . . . . Combat Hostiles . | . . . . . . . . . . . . . . . . . . . . . . . . . . . . . Parts Fried 14 | . . . . . . . . . . . . . 1 12 . . . . . . . . . . . 1 . . Impact Corruptions 14 | . . . . . . . . . . . . . 2 12 . . . . . . . . . . . . . . Robots Melted 1 | . . . . . . . . 1 . . . . . . . . . . . . . . . . . . . . Combat Hostiles . | . . . . . . . . . . . . . . . . . . . . . . . . . . . . . Parts Melted 21 | . . . 5 . . . 2 13 . . . 1 . . . . . . . . . . . . . . . . Heat Transferred 9094 | . . . 1237 . . . 222 5809 777 . 555 259 . . 50 . . . . 185 . . . . . . . . Parts Sabotaged . | . . . . . . . . . . . . . . . . . . . . . . . . . . . . . Parts Stolen . | . . . . . . . . . . . . . . . . . . . . . . . . . . . . . Parts Stripped . | . . . . . . . . . . . . . . . . . . . . . . . . . . . . . Power Chain Reactions . | . . . . . . . . . . . . . . . . . . . . . . . . . . . . . Missiles Intercepted . | . . . . . . . . . . . . . . . . . . . . . . . . . . . . . Alert | -11 -10 -10 -9 -9 -9 -8 -8 -8 -7 -7 -6 -6 -6 -6 -5 -5 -4 -4 -3 -3 -3 -3 -2 -2 -2 -2 -1 -1 ------- Run | Scr Mat Min Mat Min Exi Min Mat Gar Fac Gar Fac Gar Fac Gar Fac Gar Fac Gar Res Gar Res Gar Res Gar Res Gar Acc Com Peak Influence 822 | . 8 78 262 59 . . 121 822 635 501 644 574 304 324 513 678 470 636 348 450 182 665 285 256 230 201 129 118 Initial 431 | . . 3 29 59 . . . 78 431 247 262 383 275 212 161 280 355 315 303 246 178 136 261 162 63 172 120 32 Average 312 | . 3 31 132 59 . . 60 516 479 345 403 463 282 299 300 470 254 532 320 304 179 412 252 96 166 128 44 45 Maximum Alert Level 3 | . . . 1 . . . . 3 2 2 2 2 1 1 2 2 2 2 1 2 . 2 1 1 1 1 . . Low Security (%) 33 | 100 100 100 75 100 . 100 100 19 . . 10 . . . 35 . 12 . . 11 100 15 . 87 83 90 100 100 Level 1 31 | . . . 24 . . . . 22 19 71 41 31 100 100 47 36 84 1 100 61 . 33 100 12 16 9 . . Level 2 32 | . . . . . . . . 16 80 28 48 68 . . 16 63 3 98 . 26 . 50 . . . . . . Level 3 2 | . . . . . . . . 41 . . . . . . . . . . . . . . . . . . . . Level 4 . | . . . . . . . . . . . . . . . . . . . . . . . . . . . . . Level 5 . | . . . . . . . . . . . . . . . . . . . . . . . . . . . . . High Security . | . . . . . . . . . . . . . . . . . . . . . . . . . . . . . Max Security . | . . . . . . . . . . . . . . . . . . . . . . . . . . . . . Squads Dispatched 40 | . . . . . . . . . 4 . 5 . 2 . 7 . 6 . 2 . . . 1 . . . 12 1 Investigation 2 | . . . . . . . . . 1 . 1 . . . . . . . . . . . . . . . . . Extermination 13 | . . . . . . . . . 2 . 2 . 1 . . . 1 . . . . . 1 . . . 5 1 Reinforcement 21 | . . . . . . . . . 1 . 1 . . . 5 . 5 . 2 . . . . . . . 7 . Assault 2 | . . . . . . . . . . . 1 . . . 1 . . . . . . . . . . . . . Garrison 2 | . . . . . . . . . . . . . 1 . 1 . . . . . . . . . . . . . Intercept . | . . . . . . . . . . . . . . . . . . . . . . . . . . . . . Searches Triggered . | . . . . . . . . . . . . . . . . . . . . . . . . . . . . . Construction Impeded 2 | . . . . . . . . . . . . . . . 2 . . . . . . . . . . . . . Haulers Reinforced 3 | . . . . . . . . . . . . . . . . . 1 . 1 . . . . . . . 1 . Active Scanning Responses . | . . . . . . . . . . . . . . . . . . . . . . . . . . . . . Cargo Convoy Interrupts . | . . . . . . . . . . . . . . . . . . . . . . . . . . . . . Alert ID Control Effect 160 | . . . . . . . . . . . . . 2 . 1 23 4 14 1 25 . 11 2 8 5 17 38 9 Stealth | -11 -10 -10 -9 -9 -9 -8 -8 -8 -7 -7 -6 -6 -6 -6 -5 -5 -4 -4 -3 -3 -3 -3 -2 -2 -2 -2 -1 -1 --------- Run | Scr Mat Min Mat Min Exi Min Mat Gar Fac Gar Fac Gar Fac Gar Fac Gar Fac Gar Res Gar Res Gar Res Gar Res Gar Acc Com Distress Signals 14 | . . . 2 . . . 2 . . . 1 . 1 . 3 . 2 . 1 . . . . . . . 1 1 Communications Jammed 33 | . . . . . . . . . . . . . . . . . 8 . . 4 . . 1 . 9 . 11 . Distress Signals 32 | . . . . . . . . . . . . . . . . . 8 . . 4 . . . . 9 . 11 . Times Spotted 546 | . 5 3 22 . . . 9 33 15 3 32 22 9 3 26 31 21 40 9 29 . 44 6 38 6 33 75 32 Peak Tracking Total 14 | . 5 3 5 . . . 5 10 2 3 4 14 4 2 5 5 6 7 5 3 . 8 2 14 1 13 5 10 Tactical Retreats 12 | . . . . . . . . 1 . . . 1 . 1 5 . . 2 . . . 1 . . . . 1 . Traps | -11 -10 -10 -9 -9 -9 -8 -8 -8 -7 -7 -6 -6 -6 -6 -5 -5 -4 -4 -3 -3 -3 -3 -2 -2 -2 -2 -1 -1 ------- Run | Scr Mat Min Mat Min Exi Min Mat Gar Fac Gar Fac Gar Fac Gar Fac Gar Fac Gar Res Gar Res Gar Res Gar Res Gar Acc Com Traps Triggered 21 | . . . . . . . . . 2 . . 1 1 . . 3 . 4 1 1 . 1 . 2 . 4 . 1 Indirectly . | . . . . . . . . . . . . . . . . . . . . . . . . . . . . . Trap Hack Attempts 2 | . . . . . . . . . . . 2 . . . . . . . . . . . . . . . . . Triggered . | . . . . . . . . . . . . . . . . . . . . . . . . . . . . . Disarmed 1 | . . . . . . . . . . . 1 . . . . . . . . . . . . . . . . . Reprogrammed 1 | . . . . . . . . . 1 . . . . . . . . . . . . . . . . . . . Reused 1 | . . . . . . . . . 1 . . . . . . . . . . . . . . . . . . . Traps Extracted . | . . . . . . . . . . . . . . . . . . . . . . . . . . . . . Installed . | . . . . . . . . . . . . . . . . . . . . . . . . . . . . . Triggered 1 | . . . . . . . . . 1 . . . . . . . . . . . . . . . . . . . Machines | -11 -10 -10 -9 -9 -9 -8 -8 -8 -7 -7 -6 -6 -6 -6 -5 -5 -4 -4 -3 -3 -3 -3 -2 -2 -2 -2 -1 -1 ---------- Run | Scr Mat Min Mat Min Exi Min Mat Gar Fac Gar Fac Gar Fac Gar Fac Gar Fac Gar Res Gar Res Gar Res Gar Res Gar Acc Com Machines Disabled 49 | . . . . . . . . 1 1 2 6 1 . 1 5 7 . 1 . 7 . 4 . 5 . 6 1 1 Max in Single Turn 5 | . . . . . . . . . 1 1 1 1 . 1 5 1 . 1 . 1 . 1 . 1 . 1 1 1 Garrison Access 2 | . . . . . . . . . . . 1 . . . 1 . . . . . . . . . . . . . Garrison Relay 25 | . . . . . . . . . . 2 . 1 . 1 . 6 . 1 . 3 . 4 . 3 . 4 . . Machines Sabotaged . | . . . . . . . . . . . . . . . . . . . . . . . . . . . . . Garrisons Compromised . | . . . . . . . . . . . . . . . . . . . . . . . . . . . . . Overloaded Fab Kills . | . . . . . . . . . . . . . . . . . . . . . . . . . . . . . Hacking | -11 -10 -10 -9 -9 -9 -8 -8 -8 -7 -7 -6 -6 -6 -6 -5 -5 -4 -4 -3 -3 -3 -3 -2 -2 -2 -2 -1 -1 --------- Run | Scr Mat Min Mat Min Exi Min Mat Gar Fac Gar Fac Gar Fac Gar Fac Gar Fac Gar Res Gar Res Gar Res Gar Res Gar Acc Com Machines Accessed 56 | . 2 . 2 . 2 . 1 2 7 1 7 1 3 1 1 2 3 3 1 3 1 3 1 2 1 2 3 1 Terminals 40 | . 2 . 2 . . . . 2 5 1 3 1 2 1 . 2 2 3 . 3 . 3 . 2 . 2 3 1 Fabricators 3 | . . . . . . . . . 1 . 2 . . . . . . . . . . . . . . . . . Repair Stations . | . . . . . . . . . . . . . . . . . . . . . . . . . . . . . Recycling Units . | . . . . . . . . . . . . . . . . . . . . . . . . . . . . . Scanalyzers 1 | . . . . . . . . . . . 1 . . . . . . . . . . . . . . . . . Garrison Access 10 | . . . . . . . 1 . 1 . 1 . 1 . 1 . 1 . 1 . 1 . 1 . 1 . . . Total Hacks 155 | . 5 . 6 . 3 . 5 6 42 3 24 3 6 2 2 4 8 6 1 8 2 5 2 3 2 3 3 1 Successful 83 | . 1 . 2 . 3 . 2 1 33 . 16 2 4 2 1 . 4 1 1 2 1 1 1 1 1 1 2 . Failed 71 | . 4 . 4 . . . 3 5 8 3 8 1 2 . 1 4 4 5 . 6 1 4 1 2 1 2 1 1 Catastrophic 17 | . . . . . . . 1 . 3 1 1 . 1 . 1 1 1 2 . 1 . . . . . 2 1 1 Database Lockouts 1 | . . . . . . . . . 1 . . . . . . . . . . . . . . . . . . . Manual 66 | . 5 . 5 . 1 . 3 . 16 3 11 3 5 2 1 . 7 . . . 1 . 1 . 1 1 . . Terminals 100 | . 5 . 6 . . . . 6 21 3 9 3 5 2 . 4 7 6 . 8 . 5 . 3 . 3 3 1 Fabricators 25 | . . . . . . . . . 19 . 6 . . . . . . . . . . . . . . . . . Repair Stations . | . . . . . . . . . . . . . . . . . . . . . . . . . . . . . Recycling Units . | . . . . . . . . . . . . . . . . . . . . . . . . . . . . . Scanalyzers 8 | . . . . . . . . . . . 8 . . . . . . . . . . . . . . . . . Garrison Access 19 | . . . . . . . 5 . 2 . 1 . 1 . 2 . 1 . 1 . 2 . 2 . 2 . . . Terminal Hacks 36 | . 1 . 1 . 3 . . 1 11 . 3 2 3 2 . . 1 1 . 2 . 1 . 1 . 1 2 . Record 2 | . . . . . 2 . . . . . . . . . . . . . . . . . . . . . . . Robot Schematic 1 | . . . . . . . . . 1 . . . . . . . . . . . . . . . . . . . Prototype ID Bank 1 | . . . 1 . . . . . . . . . . . . . . . . . . . . . . . . . Open Door 5 | . . . . . . . . 1 . . . . . . . . . 1 . 1 . . . . . . 2 . Level Access Points 1 | . . . . . . . . . 1 . . . . . . . . . . . . . . . . . . . Branch Access Points 3 | . 1 . . . . . . . 1 . . . 1 . . . . . . . . . . . . . . . Emergency Access Points 4 | . . . . . . . . . 2 . . . . . . . . . . 1 . 1 . . . . . . Machine Index 1 | . . . . . . . . . 1 . . . . . . . . . . . . . . . . . . . Terminal Index 4 | . . . . . . . . . 1 . 1 . 1 . . . 1 . . . . . . . . . . . Garrison Index 2 | . . . . . . . . . . . 1 . 1 . . . . . . . . . . . . . . . Locate Traps 2 | . . . . . . . . . 2 . . . . . . . . . . . . . . . . . . . Reprogram Traps 1 | . . . . . . . . . 1 . . . . . . . . . . . . . . . . . . . Recall Investigation 1 | . . . . . . . . . 1 . . . . . . . . . . . . . . . . . . . Zone Layout 1 | . . . . . . . . . . . 1 . . . . . . . . . . . . . . . . . Garrison Registry 4 | . . . . . . . . . . . . 1 . 1 . . . . . . . . . 1 . 1 . . Security Stations 2 | . . . . . . . . . . . . 1 . 1 . . . . . . . . . . . . . . EX-Prototype ID Bank 1 | . . . . . 1 . . . . . . . . . . . . . . . . . . . . . . . Fabricator Hacks 19 | . . . . . . . . . 18 . 1 . . . . . . . . . . . . . . . . . Network Status 1 | . . . . . . . . . . . 1 . . . . . . . . . . . . . . . . . Load Schematic 9 | . . . . . . . . . 9 . . . . . . . . . . . . . . . . . . . Build 9 | . . . . . . . . . 9 . . . . . . . . . . . . . . . . . . . Repair Station Hacks . | . . . . . . . . . . . . . . . . . . . . . . . . . . . . . Recycling Unit Hacks . | . . . . . . . . . . . . . . . . . . . . . . . . . . . . . Scanalyzer 7 | . . . . . . . . . . . 7 . . . . . . . . . . . . . . . . . Insert Component 4 | . . . . . . . . . . . 4 . . . . . . . . . . . . . . . . . Analyze 3 | . . . . . . . . . . . 3 . . . . . . . . . . . . . . . . . Garrison Access Hacks 10 | . . . . . . . 1 . 1 . 1 . 1 . 1 . 1 . 1 . 1 . 1 . 1 . . . Unlock Access 10 | . . . . . . . 1 . 1 . 1 . 1 . 1 . 1 . 1 . 1 . 1 . 1 . . . Unauthorized Hacks 11 | . . . 1 . . . 1 . 3 . 4 . . . . . 2 . . . . . . . . . . . Terminals 4 | . . . 1 . . . . . 1 . . . . . . . 2 . . . . . . . . . . . Assimilate 1 | . . . 1 . . . . . . . . . . . . . . . . . . . . . . . . . Botnet 2 | . . . . . . . . . 1 . . . . . . . 1 . . . . . . . . . . . Operators 1 | . . . . . . . . . . . . . . . . . 1 . . . . . . . . . . . Fabricators 5 | . . . . . . . . . 1 . 4 . . . . . . . . . . . . . . . . . Prioritize 1 | . . . . . . . . . 1 . . . . . . . . . . . . . . . . . . . Liberate 1 | . . . . . . . . . . . 1 . . . . . . . . . . . . . . . . . Fabnet 2 | . . . . . . . . . . . 2 . . . . . . . . . . . . . . . . . Haulers 1 | . . . . . . . . . . . 1 . . . . . . . . . . . . . . . . . Repair Stations . | . . . . . . . . . . . . . . . . . . . . . . . . . . . . . Recycling Units . | . . . . . . . . . . . . . . . . . . . . . . . . . . . . . Scanalyzers . | . . . . . . . . . . . . . . . . . . . . . . . . . . . . . Garrison Access 2 | . . . . . . . 1 . 1 . . . . . . . . . . . . . . . . . . . Restock 1 | . . . . . . . 1 . . . . . . . . . . . . . . . . . . . . . Reprogram 1 | . . . . . . . . . 1 . . . . . . . . . . . . . . . . . . . Data Cores Recovered . | . . . . . . . . . . . . . . . . . . . . . . . . . . . . . Used . | . . . . . . . . . . . . . . . . . . . . . . . . . . . . . Hacking Detections 46 | . 1 . 2 . . . 1 1 7 1 4 1 3 1 1 2 3 2 1 3 1 3 1 1 1 2 2 1 Full Trace Events 11 | . 1 . . . . . . 1 1 1 1 . . . . 1 . 2 . 1 . 1 . . . 1 . . Feedback Events . | . . . . . . . . . . . . . . . . . . . . . . . . . . . . . Feedback Blocked . | . . . . . . . . . . . . . . . . . . . . . . . . . . . . . Robot Schematics Acquired 1 | . . . . . . . . . 1 . . . . . . . . . . . . . . . . . . . Robots Built 18 | . . . . . . . . . 18 . . . . . . . . . . . . . . . . . . . Authchips 9 | . . . . . . . . . 9 . . . . . . . . . . . . . . . . . . . Time 297 | . . . . . . . . . 297 . . . . . . . . . . . . . . . . . . . Total Robot Build Rating 72 | . . . . . . . . . 72 . . . . . . . . . . . . . . . . . . . Part Schematics Acquired 3 | . . . . . . . . . . . 3 . . . . . . . . . . . . . . . . . Parts Built . | . . . . . . . . . . . . . . . . . . . . . . . . . . . . . Authchips . | . . . . . . . . . . . . . . . . . . . . . . . . . . . . . Time . | . . . . . . . . . . . . . . . . . . . . . . . . . . . . . Total Part Build Rating . | . . . . . . . . . . . . . . . . . . . . . . . . . . . . . Parts Repaired . | . . . . . . . . . . . . . . . . . . . . . . . . . . . . . Time . | . . . . . . . . . . . . . . . . . . . . . . . . . . . . . Parts Recycled . | . . . . . . . . . . . . . . . . . . . . . . . . . . . . . Recycled Matter . | . . . . . . . . . . . . . . . . . . . . . . . . . . . . . Retrieved Matter . | . . . . . . . . . . . . . . . . . . . . . . . . . . . . . Retrieved Components . | . . . . . . . . . . . . . . . . . . . . . . . . . . . . . Parts Scanalyzed 4 | . . . . . . . . . . . 4 . . . . . . . . . . . . . . . . . Part Schematics Acquired 3 | . . . . . . . . . . . 3 . . . . . . . . . . . . . . . . . Parts Damaged . | . . . . . . . . . . . . . . . . . . . . . . . . . . . . . Bothacking | -11 -10 -10 -9 -9 -9 -8 -8 -8 -7 -7 -6 -6 -6 -6 -5 -5 -4 -4 -3 -3 -3 -3 -2 -2 -2 -2 -1 -1 ------------ Run | Scr Mat Min Mat Min Exi Min Mat Gar Fac Gar Fac Gar Fac Gar Fac Gar Fac Gar Res Gar Res Gar Res Gar Res Gar Acc Com Used RIF Installer 12 | . . . . . . . . 1 . 1 . 2 . 1 . . . 1 . 2 . 1 . 1 . 2 . . Hotswap 1 | . . . . . . . . . . . . . . . . . . . . 1 . . . . . . . . Command Fork 2 | . . . . . . . . . . . . 1 . 1 . . . . . . . . . . . . . . Threat Obfuscator 2 | . . . . . . . . . . 1 . . . . . . . . . . . . . . . 1 . . Signal Jammer 1 | . . . . . . . . . . . . . . . . . . 1 . . . . . . . . . . Watcher Feeds 1 | . . . . . . . . . . . . . . . . . . . . . . . . 1 . . . . Patrol Navigation 1 | . . . . . . . . . . . . . . . . . . . . 1 . . . . . . . . Alert ID Control 1 | . . . . . . . . . . . . 1 . . . . . . . . . . . . . . . . Program Shield 1 | . . . . . . . . . . . . . . . . . . . . . . . . . . 1 . . Crosswire 1 | . . . . . . . . . . . . . . . . . . . . . . 1 . . . . . . Robots Hacked 167 | . . . . . . . . . . . 4 5 4 1 2 18 11 9 1 13 . 20 5 15 3 16 31 9 Non-combat 17 | . . . . . . . . . . . 1 . 1 . . 1 2 . . 1 . . . . 1 1 9 . Combat 150 | . . . . . . . . . . . 3 5 3 1 2 17 9 9 1 12 . 20 5 15 2 15 22 9 Robot Hacks Applied 169 | . . . . . . . . . . . 5 5 4 1 2 15 10 9 1 15 . 20 7 15 3 16 32 9 parse_system 1 | . . . . . . . . . . . . . . . . . . . . . . . . . . . 1 . no_distress 1 | . . . . . . . . . . . 1 . . . . . . . . . . . . . . . . . ignore_repairs 1 | . . . . . . . . . . . . . . . . . . . . . . . . . . . 1 . map_walls 2 | . . . . . . . . . . . . . . . . . . . . . . . . . 1 . 1 . map_earth 1 | . . . . . . . . . . . . . . . . . 1 . . . . . . . . . . . drop_inventory 4 | . . . . . . . . . . . . . . . . . 1 . . . . . . . . . 3 . purge_threat 2 | . . . . . . . . . . . . . . . . . . . . 2 . . . . . . . . disarm_traps 1 | . . . . . . . . . . . . . . . . . . . . . . . . . . . 1 . map_route 2 | . . . . . . . . . . . . . 1 . . . . . . . . . . . . . 1 . find_garrison 9 | . . . . . . . . . . . 1 . 1 . . . 2 . 1 . . . 1 . 1 . 2 . scatter_targeting 1 | . . . . . . . . . . . . . . . . . . . . 1 . . . . . . . . disrupt_area 1 | . . . . . . . . . . . . 1 . . . . . . . . . . . . . . . . reboot_system 5 | . . . . . . . . . . . . . . . . . . 1 . . . 2 2 . . . . . overwrite_iff 30 | . . . . . . . . . . . 1 3 1 . 1 2 1 3 . . . 5 . 7 . 2 3 1 formatsys_low 4 | . . . . . . . . . . . . . . . . . . . . 1 . . . . . 1 2 . formatsys_high 104 | . . . . . . . . . . . 2 1 1 1 1 13 5 5 . 11 . 13 4 8 1 13 17 8 Relay Couplers Released 113 | . . . . . . . . . . 8 2 4 . 4 . 26 . 5 . 13 . 17 . 13 . 21 . . Machine Destruction 109 | . . . . . . . . . . 8 2 4 . 4 . 26 . 5 . 13 . 17 . 13 . 17 . . Programmers 4 | . . . . . . . . . . . . . . . . . . . . . . . . . . 4 . . Attached 84 | . . . . . . . . . . . 2 7 1 1 1 14 1 11 . 11 . 12 2 8 . 10 1 2 Crosswired 22 | . . . . . . . . . . . . . . . . . . . . . . 8 . 8 . 6 . . Fabnet Peak Effective % 6 | . . . . . . . . . . . . . . . 6 6 2 2 . . . . . . . . . . Autooverrided 5 | . . . . . . . . . . . . . . . . 3 1 1 . . . . . . . . . . Robots Rewired 21 | . . . . . . . . 2 . . . . . . . 6 . 6 . 4 . 2 . 1 . . . . Allies Hacked 7 | . . . . . . . . . . 1 1 . . . . 1 . . . . . . . 4 . . . . Hacks Repelled . | . . . . . . . . . . . . . . . . . . . . . . . . . . . . . Allies | -11 -10 -10 -9 -9 -9 -8 -8 -8 -7 -7 -6 -6 -6 -6 -5 -5 -4 -4 -3 -3 -3 -3 -2 -2 -2 -2 -1 -1 -------- Run | Scr Mat Min Mat Min Exi Min Mat Gar Fac Gar Fac Gar Fac Gar Fac Gar Fac Gar Res Gar Res Gar Res Gar Res Gar Acc Com Total Allies 244 | . . . 1 . . . . 2 18 1 4 5 2 1 2 29 7 19 . 22 . 27 4 26 1 25 35 13 Largest Group 24 | . . . 1 1 1 1 1 2 17 15 13 2 2 1 1 12 9 6 4 13 13 24 16 17 8 16 15 6 Highest-Rated Group 1225 | . . . 10 10 10 10 10 70 618 540 417 85 24 29 41 380 321 279 186 712 712 1225 878 1003 554 896 777 360 Highest-Rated Ally 137 | . . . 10 10 10 10 10 39 37 37 37 85 12 29 41 68 137 95 47 65 65 99 69 119 119 119 69 64 Total Orders 29 | . . . . . . . . . . 4 4 . . . . 1 . . . 3 . 7 . 6 . 2 . 2 STAY 17 | . . . . . . . . . . 2 2 . . . . 1 . . . 2 . 4 . 3 . 1 . 2 FOLLOW 12 | . . . . . . . . . . 2 2 . . . . . . . . 1 . 3 . 3 . 1 . . Ally Attacks 1258 | . . . . . . . . 13 13 20 111 15 10 4 6 111 53 73 27 100 . 138 33 75 34 116 248 58 Total Damage 42649 | . . . . . . . . 131 167 1216 2427 197 113 76 177 2685 2035 2829 666 5900 . 4498 1004 2262 1332 4502 8409 2023 Kills 252 | . . . . . . . . 2 2 10 24 1 2 . 1 25 15 19 4 28 . 21 2 11 8 21 47 9 Allies Corrupted 15 | . . . . . . . 1 . . . . . . . . . . 2 . . . . . 2 . 1 7 2 Allies Melted 4 | . . . . . . . . . . . . 1 . . . . 1 1 . . . . . . . 1 . . Intel | -11 -10 -10 -9 -9 -9 -8 -8 -8 -7 -7 -6 -6 -6 -6 -5 -5 -4 -4 -3 -3 -3 -3 -2 -2 -2 -2 -1 -1 ------- Run | Scr Mat Min Mat Min Exi Min Mat Gar Fac Gar Fac Gar Fac Gar Fac Gar Fac Gar Res Gar Res Gar Res Gar Res Gar Acc Com Robot Analysis Total . | . . . . . . . . . . . . . . . . . . . . . . . . . . . . . Derelict Logs Recovered . | . . . . . . . . . . . . . . . . . . . . . . . . . . . . . Drone Launches . | . . . . . . . . . . . . . . . . . . . . . . . . . . . . . Drone Recoveries . | . . . . . . . . . . . . . . . . . . . . . . . . . . . . . Exploration | -11 -10 -10 -9 -9 -9 -8 -8 -8 -7 -7 -6 -6 -6 -6 -5 -5 -4 -4 -3 -3 -3 -3 -2 -2 -2 -2 -1 -1 ------------- Run | Scr Mat Min Mat Min Exi Min Mat Gar Fac Gar Fac Gar Fac Gar Fac Gar Fac Gar Res Gar Res Gar Res Gar Res Gar Acc Com Turns Passed 20783 | 7 82 179 601 116 339 212 230 1197 1703 651 1384 339 315 549 735 1899 699 1482 217 1281 68 1565 291 998 226 1051 1681 686 Spaces Moved 11473 | 3 52 98 196 69 210 132 102 625 824 332 754 187 263 213 389 1342 453 685 130 847 50 854 162 507 141 584 950 319 Core 588 | . . . 1 . . . . . . . . 73 88 . 192 229 . 5 . . . . . . . . . . Treads 7716 | 3 52 98 164 69 210 132 102 625 824 332 754 107 . 126 197 . . 604 . . . 702 162 507 141 584 950 271 Legs 3169 | . . . 31 . . . . . . . . 7 175 87 . 1113 453 76 130 847 50 152 . . . . . 48 Wheels . | . . . . . . . . . . . . . . . . . . . . . . . . . . . . . Hover . | . . . . . . . . . . . . . . . . . . . . . . . . . . . . . Flight . | . . . . . . . . . . . . . . . . . . . . . . . . . . . . . Fastest Speed 50 | 160 160 160 100 160 160 160 160 160 160 160 160 50 50 120 50 50 120 50 120 120 120 120 160 152 152 157 145 110 Average Speed 144 | 160 160 160 153 160 160 160 170 160 160 160 160 116 96 190 141 113 120 155 120 120 120 153 160 158 152 157 146 144 Slowest Speed 240 | 160 160 160 160 160 160 160 240 160 160 160 165 162 120 240 240 120 120 160 120 120 120 190 160 160 157 157 157 225 Overloaded Moves . | . . . . . . . . . . . . . . . . . . . . . . . . . . . . . Propulsion Burnouts . | . . . . . . . . . . . . . . . . . . . . . . . . . . . . . Robots Hopped . | . . . . . . . . . . . . . . . . . . . . . . . . . . . . . Cave-ins Triggered 1 | . . . . . . . . . . . . . . 1 . . . . . . . . . . . . . . Exploration Rate (%) 33 | 2 19 37 25 28 63 39 12 69 22 36 23 30 8 31 15 81 14 60 9 70 4 93 8 46 6 71 39 12 Regions Visited 28 Branch Regions 5 Pre-discovered Areas 1 | . . . . . 1 . . . . . . . . . . . . . . . . . . . . . . . Known Exits Taken 11 | . 1 . . . . . 1 . 1 . 1 . 1 . 1 . 1 . 1 . 1 . 1 . 1 . . . Unknown Exits Taken 7 | 1 . 1 1 1 1 1 . . . . . . . . . . . . . . . . . . . . 1 . Scrap Searched 1 | . . 1 . . . . . . . . . . . . . . . . . . . . . . . . . . Spaces Dug 70 | . . . . . . . . . . . . 3 1 7 1 11 11 14 2 1 2 6 . 2 . . 4 5 Terrain Destroyed 271 | . . . . . . . . . 7 1 4 16 1 7 84 11 52 66 2 1 2 6 . 2 . . 4 5 Melee 53 | . . . . . . . . . . . . . 1 7 . 11 11 1 2 1 2 6 . 2 . . 4 5 Projectile 33 | . . . . . . . . . 7 1 4 1 . . 20 . . . . . . . . . . . . . AOE 185 | . . . . . . . . . . . . 15 . . 64 . 41 65 . . . . . . . . . . Terrain Rammed . | . . . . . . . . . . . . . . . . . . . . . . . . . . . . . Walls Destroyed . | . . . . . . . . . . . . . . . . . . . . . . . . . . . . . Machines Disabled . | . . . . . . . . . . . . . . . . . . . . . . . . . . . . . Actions | -11 -10 -10 -9 -9 -9 -8 -8 -8 -7 -7 -6 -6 -6 -6 -5 -5 -4 -4 -3 -3 -3 -3 -2 -2 -2 -2 -1 -1 --------- Run | Scr Mat Min Mat Min Exi Min Mat Gar Fac Gar Fac Gar Fac Gar Fac Gar Fac Gar Res Gar Res Gar Res Gar Res Gar Acc Com Total 14427 | 6 51 110 371 74 214 132 139 751 1183 440 865 255 308 307 502 1628 540 980 177 1062 54 1046 184 625 150 670 1129 474 Wait 922 | . . 3 54 4 2 . 15 22 302 86 22 . 8 23 25 68 10 67 30 41 3 74 . 11 . . 10 42 Move 11453 | 2 51 97 195 68 209 131 102 624 823 331 754 186 263 212 389 1341 453 684 130 846 49 853 162 506 141 583 949 319 Hop . | . . . . . . . . . . . . . . . . . . . . . . . . . . . . . Pick Up 214 | . . 2 20 . 1 . 5 20 8 7 9 4 2 21 11 11 3 20 1 9 . 10 3 18 . 6 15 8 Fast Attach 153 | . . . 11 . . . 1 2 4 . 6 4 2 4 2 21 3 24 2 16 . 7 . 10 1 9 20 4 Attach 115 | 2 . . 6 . . . 3 5 10 1 6 10 4 4 17 1 3 7 2 5 . 3 2 5 . 1 8 10 Detach 12 | . . . . . . . . 3 . . . 1 . 3 2 . . 1 . 2 . . . . . . . . Swap 84 | . . . 1 . . . . 2 . . 2 5 4 1 1 16 5 5 1 8 . 4 1 . . 9 7 12 Drop 159 | 2 . . 11 . 2 . 2 25 6 2 5 5 1 6 2 20 1 12 2 12 . 11 1 9 1 6 8 7 Fire 720 | . . 4 73 . . . 9 42 21 13 46 38 5 4 44 20 34 62 2 56 . 40 12 37 6 20 73 59 Melee 310 | . . . . . . . . . . . 9 1 11 28 7 52 27 29 7 8 2 29 3 23 . 28 36 10 Ram . | . . . . . . . . . . . . . . . . . . . . . . . . . . . . . Kick 6 | . . . . . . . . . . . . . . . . . . . . 6 . . . . . . . . Crush 29 | . . 4 . 2 . 1 2 . 9 . 2 . . . 2 . . 4 . . . . . . 1 . 2 . Escape Stasis 31 | . . . . . . . . . . . . . 8 . . 21 . . . . . 2 . . . . . . Rewire 217 | . . . . . . . . 6 . . 2 1 . 1 . 57 1 65 . 53 . 13 . 6 . 8 1 3 Trap 2 | . . . . . . . . . . . 2 . . . . . . . . . . . . . . . . . Miscellaneous . | . . . . . . . . . . . . . . . . . . . . . . . . . . . . . Route ------- -11/Scrapyard -10/Materials (discovered 2 exits: *Min x2) -10/Mines -9/Materials -9/Mines -9/Exiles (discovered 2 exits: [*Min x2]) -8/Mines -8/Materials -8/Garrison (discovered 3 exits: *Fac x3) -7/Factory (discovered 9 exits: *Fac x4 / Sto x2 / Low x2 / Gar) -7/Garrison -6/Factory (discovered 4 exits: *Fac x3 / Gar) -6/Garrison (discovered 3 exits: *Fac x3) -6/Factory (discovered 3 exits: Low x2 / Gar) -6/Garrison (discovered 3 exits: *Fac x3) -5/Factory (discovered 2 exits: [*Upp] / Gar) -5/Garrison (discovered 3 exits: *Fac x3) -4/Factory (discovered 2 exits: *Res / Gar) -4/Garrison (discovered 2 exits: *Res x2) -3/Research -3/Garrison (discovered 2 exits: *Res x2) -3/Research -3/Garrison (discovered 3 exits: *Res x3) -2/Research (discovered 2 exits: [*Tes] / Gar) -2/Garrison (discovered 4 exits: *Res x4) -2/Research (discovered 2 exits: *Acc / Gar) -2/Garrison (discovered 3 exits: *Acc x3) -1/Access -1/Command History --------- Turn | Location | Event 4 | -11/Scrapyard | Discovered new exit (range 2) 8 | -11/Scrapyard | Entered Materials 53 | -10/Materials | Identified exit to Mines 90 | -10/Materials | Entered Mines 245 | -10/Mines | Discovered new exit (range 8) 269 | -10/Mines | Entered Materials 269 | -9/Materials | Evolved 2 slots: Utility x2 309 | -9/Materials | Build established: Mutant 358 | -9/Materials | Lost 4 parts (1p1n2w) 648 | -9/Materials | Build established: Scavenger-Mutant 806 | -9/Materials | Discovered new exit (range 12) 826 | -9/Materials | Core integrity fell below 50% 870 | -9/Materials | Entered Mines 870 | -9/Mines | Accompanied by 1 ally 976 | -9/Mines | Deemed a non-threat by the Exiles lab entrance 976 | -9/Mines | Discovered new exit (range 5) 986 | -9/Mines | Entered Exiles 986 | -9/Exiles | Accompanied by 1 ally 1007 | -9/Exiles | Discovered new exit (range 17) 1026 | -9/Exiles | Met 8R-AWN 1054 | -9/Exiles | Met EX-HEX 1095 | -9/Exiles | Met EX-BIN 1118 | -9/Exiles | Aligned with FarCom system 1119 | -9/Exiles | Given EX-Vault access code 1158 | -9/Exiles | Opened EX-Vault 1170 | -9/Exiles | Found AWS/Thermal 1208 | -9/Exiles | Warned to stay clear of 0b10 Research branches 1248 | -9/Exiles | Met EX-DEC 1259 | -9/Exiles | Learned location of Zion (-6) 1310 | -9/Exiles | Discovered new exit (range 10) 1325 | -9/Exiles | Left Exiles lab with AWS/Thermal 1325 | -9/Exiles | Entered Mines 1325 | -8/Mines | Accompanied by 1 ally 1529 | -8/Mines | Discovered new exit (range 6) 1537 | -8/Mines | Entered Materials 1537 | -8/Materials | Accompanied by 1 ally 1537 | -8/Materials | Evolved 2 slots: Propulsion x2 1752 | -8/Materials | Identified exit to Garrison 1767 | -8/Materials | Entered Garrison 1836 | -8/Garrison | Triggered checkpoint 1930 | -8/Garrison | Triggered checkpoint 1993 | -8/Garrison | Discovered new exit (range 12) 2072 | -8/Garrison | Triggered checkpoint 2408 | -8/Garrison | Triggered checkpoint 2408 | -8/Garrison | Triggered checkpoint 2417 | -8/Garrison | Triggered checkpoint 2478 | -8/Garrison | Destroyed 11 combat bots 2500 | -8/Garrison | Build established: Hacker-Mutant 2500 | -8/Garrison | Discovered new exit (range 10) 2655 | -8/Garrison | Discovered new exit (range 9) 2673 | -8/Garrison | Installed Relay Interface Framework 2964 | -8/Garrison | Entered Factory 2964 | -7/Factory | Evolved 2 slots: Utility x2 3087 | -7/Factory | Identified exit to Garrison 3105 | -7/Factory | Discovered new exit (range 8) 3684 | -7/Factory | Central database locked down 3684 | -7/Factory | Identified exit to Storage 3684 | -7/Factory | Identified exit to Lower Caves 3684 | -7/Factory | Identified exit to Factory 3764 | -7/Factory | Fabricated P-60 Hacker (x2) 3804 | -7/Factory | Fabricated P-60 Hacker? 3881 | -7/Factory | Fabricated P-60 Hacker? 3939 | -7/Factory | Fabricated P-60 Hacker (x2) 3973 | -7/Factory | Fabricated P-60 Hacker (x2) 4024 | -7/Factory | Fabricated P-60 Hacker (x2) 4057 | -7/Factory | Fabricated P-60 Hacker (x2) 4141 | -7/Factory | Fabricated P-60 Hacker (x2) 4183 | -7/Factory | Fabricated P-60 Hacker (x2) 4265 | -7/Factory | Build established: Commander-Mutant 4667 | -7/Factory | Entered Garrison 4667 | -7/Garrison | Warlord forces raided the area 4667 | -7/Garrison | Accompanied by 15 allies 4668 | -7/Garrison | Triggered checkpoint 4702 | -7/Garrison | Triggered checkpoint 4754 | -7/Garrison | Triggered checkpoint 4754 | -7/Garrison | Triggered checkpoint 4760 | -7/Garrison | Triggered checkpoint 4782 | -7/Garrison | Warlord forces retreated 4786 | -7/Garrison | Triggered checkpoint 4838 | -7/Garrison | Expanded RIF knowledge: Threat Obfuscation 4862 | -7/Garrison | Garrison Relay disabled 4999 | -7/Garrison | Discovered exit to Factory (range 13) 5038 | -7/Garrison | Triggered checkpoint 5083 | -7/Garrison | Garrison Relay disabled 5318 | -7/Garrison | Entered Factory 5318 | -6/Factory | Accompanied by 12 allies 5318 | -6/Factory | Evolved 2 slots: Utility x2 5318 | -6/Factory | Discovered new exit (range 14) 5403 | -6/Factory | Identified exit to Factory 6142 | -6/Factory | Hacker 4r assimilated hostile B-48 Gladiator 6210 | -6/Factory | Build established: Bothacker-Mutant 6532 | -6/Factory | Discovered exit to Factory (range 12) 6681 | -6/Factory | Discovered exit to Factory (range 8) 6702 | -6/Factory | Identified exit to Garrison 6702 | -6/Factory | Entered Garrison 6762 | -6/Garrison | Triggered checkpoint 6814 | -6/Garrison | Expanded RIF knowledge: Command Fork 6833 | -6/Garrison | Assembled breached garrison interior 6845 | -6/Garrison | Discovered new exit (range 30) 6845 | -6/Garrison | Discovered new exit (range 55) 6845 | -6/Garrison | Discovered new exit (range 76) 6845 | -6/Garrison | Learned Factory security intel 6845 | -6/Garrison | Garrison Relay disabled 6916 | -6/Garrison | Spotted B-75 Beast 6957 | -6/Garrison | Core integrity fell below 50% 7017 | -6/Garrison | Lost 12 parts (1p4n2u5w) 7025 | -6/Garrison | Expanded RIF knowledge: Alert ID Control 7041 | -6/Garrison | Entered Factory 7081 | -6/Factory | Identified exit to Lower Caves 7298 | -6/Factory | Garrison activated, responded to threat 7356 | -6/Factory | Identified exit to Garrison 7356 | -6/Factory | Entered Garrison 7383 | -6/Garrison | Expanded RIF knowledge: Command Fork 7410 | -6/Garrison | Discovered exit to Factory (range 40) 7410 | -6/Garrison | Discovered exit to Factory (range 57) 7410 | -6/Garrison | Discovered exit to Factory (range 43) 7410 | -6/Garrison | Learned Factory security intel 7428 | -6/Garrison | Triggered checkpoint 7456 | -6/Garrison | Garrison Relay disabled 7549 | -6/Garrison | System corruption reached 10% 7815 | -6/Garrison | Crushed by falling debris 7815 | -6/Garrison | Core integrity fell below 20% 7904 | -6/Garrison | System corruption reached 30% 7905 | -6/Garrison | Entered Factory 7905 | -5/Factory | Evolved 2 slots: Utility x2 8263 | -5/Factory | Garrison activated, responded to threat 8423 | -5/Factory | Spotted B-75 Beast 8464 | -5/Factory | Destroyed B-75 Beast 8489 | -5/Factory | Lost 7 parts (1p2n2u2w) 8526 | -5/Factory | Core integrity fell below 50% 8560 | -5/Factory | Lost 5 parts (1p2n2u) 8586 | -5/Factory | Discovered new exit (range 13) 8640 | -5/Factory | Identified exit to Garrison 8640 | -5/Factory | Entered Garrison 8650 | -5/Garrison | Garrison Relay disabled 8675 | -5/Garrison | Garrison Relay disabled 8750 | -5/Garrison | Triggered checkpoint 8801 | -5/Garrison | Garrison Relay disabled 8884 | -5/Garrison | Triggered checkpoint 8911 | -5/Garrison | Triggered checkpoint 8914 | -5/Garrison | Triggered checkpoint 8950 | -5/Garrison | Triggered checkpoint 9071 | -5/Garrison | Build established: Botlord-Mutant 9071 | -5/Garrison | Discovered new exit (range 12) 9162 | -5/Garrison | Triggered checkpoint 9162 | -5/Garrison | Garrison Relay disabled 9370 | -5/Garrison | Discovered new exit (range 10) 9426 | -5/Garrison | Triggered checkpoint 9451 | -5/Garrison | Garrison Relay disabled 9718 | -5/Garrison | Triggered checkpoint 9720 | -5/Garrison | Discovered new exit (range 8) 9768 | -5/Garrison | Triggered checkpoint 9786 | -5/Garrison | Triggered checkpoint 9833 | -5/Garrison | Garrison Relay disabled 10044 | -5/Garrison | P-70 Sage assimilated allied Informer 6a 10366 | -5/Garrison | Found Relay Coupler [Proto] 10368 | -5/Garrison | Found Relay Coupler [Proto] 10371 | -5/Garrison | Found Relay Coupler [Proto] 10373 | -5/Garrison | Found Relay Coupler [Proto] 10539 | -5/Garrison | Entered Factory 10539 | -4/Factory | Accompanied by 9 allies 10539 | -4/Factory | Evolved 2 slots: Utility x2 10612 | -4/Factory | Discovered new exit (range 14) 10888 | -4/Factory | Local machine network offline 10936 | -4/Factory | Lost 3 parts (2u1w) 11051 | -4/Factory | Lost 3 parts (1n1u1w) 11238 | -4/Factory | Identified exit to Garrison 11238 | -4/Factory | Entered Garrison 11314 | -4/Garrison | Destroyed 7 combat bots 11323 | -4/Garrison | Lost 6 parts (2n2u2w) 11374 | -4/Garrison | Triggered checkpoint 11537 | -4/Garrison | Found embedded Infiltrators 11560 | -4/Garrison | Triggered checkpoint 11566 | -4/Garrison | Triggered checkpoint 11594 | -4/Garrison | Triggered checkpoint 11775 | -4/Garrison | Lost 3 parts (1p1n1u) 11969 | -4/Garrison | Garrison Relay disabled 12106 | -4/Garrison | Triggered checkpoint 12106 | -4/Garrison | Spotted B-86 Titan 12107 | -4/Garrison | Triggered checkpoint 12150 | -4/Garrison | Triggered checkpoint 12153 | -4/Garrison | Core integrity fell below 50% 12201 | -4/Garrison | Lost 6 parts (4n2u) 12247 | -4/Garrison | Expanded RIF knowledge: Signal Jamming 12294 | -4/Garrison | Discovered new exit (range 10) 12704 | -4/Garrison | Discovered new exit (range 14) 12720 | -4/Garrison | Entered Research 12720 | -3/Research | Accompanied by 4 allies 12720 | -3/Research | Evolved 2 slots: Utility x2 12937 | -3/Research | Identified exit to Garrison 12937 | -3/Research | Entered Garrison 12937 | -3/Garrison | Accompanied by 2 allies 12953 | -3/Garrison | Expanded RIF knowledge: Patrol Navigation 13053 | -3/Garrison | Heavy support dispatched to Research 13250 | -3/Garrison | Triggered checkpoint 13261 | -3/Garrison | Garrison Relay disabled 13323 | -3/Garrison | Spotted B-86 Titan 13332 | -3/Garrison | Triggered checkpoint 13342 | -3/Garrison | Triggered checkpoint 13348 | -3/Garrison | Triggered checkpoint 13350 | -3/Garrison | Allies destroyed B-86 Titan 13364 | -3/Garrison | Triggered checkpoint 13451 | -3/Garrison | Discovered new exit (range 12) 13486 | -3/Garrison | Triggered checkpoint 13516 | -3/Garrison | Garrison Relay disabled 13927 | -3/Garrison | Expanded RIF knowledge: Hotswap 13958 | -3/Garrison | Discovered new exit (range 12) 13968 | -3/Garrison | Triggered checkpoint 13972 | -3/Garrison | Garrison Relay disabled 14039 | -3/Garrison | Found Enh. Force Lance 14042 | -3/Garrison | Found Enh. Force Lance 14046 | -3/Garrison | Found Enh. Force Lance 14218 | -3/Garrison | Entered Research 14218 | -3/Research | Accompanied by 13 allies 14282 | -3/Research | Identified exit to Garrison 14286 | -3/Research | Entered Garrison 14286 | -3/Garrison | Accompanied by 11 allies 14340 | -3/Garrison | Triggered checkpoint 14370 | -3/Garrison | Garrison Relay disabled 14507 | -3/Garrison | Spotted B-86 Titan 14517 | -3/Garrison | Triggered checkpoint 14518 | -3/Garrison | Triggered checkpoint 14529 | -3/Garrison | Allies destroyed B-86 Titan 14530 | -3/Garrison | Triggered checkpoint 14538 | -3/Garrison | Triggered checkpoint 14817 | -3/Garrison | Garrison Relay disabled 14883 | -3/Garrison | Discovered new exit (range 12) 14902 | -3/Garrison | Rewired Striker 14912 | -3/Garrison | Rewired Striker 15099 | -3/Garrison | Discovered new exit (range 10) 15228 | -3/Garrison | Triggered checkpoint 15244 | -3/Garrison | Garrison Relay disabled 15477 | -3/Garrison | Expanded RIF knowledge: Crosswire 15490 | -3/Garrison | Discovered new exit (range 12) 15640 | -3/Garrison | Triggered checkpoint 15678 | -3/Garrison | Garrison Relay disabled 15851 | -3/Garrison | Entered Research 15851 | -2/Research | Accompanied by 14 allies 15851 | -2/Research | Evolved 2 slots: Utility x2 15946 | -2/Research | Discovered new exit (range 16) 16142 | -2/Research | Identified exit to Garrison 16142 | -2/Research | Entered Garrison 16142 | -2/Garrison | Accompanied by 13 allies 16212 | -2/Garrison | Triggered checkpoint 16238 | -2/Garrison | Expanded RIF knowledge: Watcher Feeds 16268 | -2/Garrison | Garrison Relay disabled 16290 | -2/Garrison | Garrison Relay disabled 16306 | -2/Garrison | Triggered checkpoint 16381 | -2/Garrison | Spotted B-90 Cyclops 16386 | -2/Garrison | Triggered checkpoint 16386 | -2/Garrison | Triggered checkpoint 16391 | -2/Garrison | Triggered checkpoint 16414 | -2/Garrison | Triggered checkpoint 16617 | -2/Garrison | Discovered new exit (range 63) 16617 | -2/Garrison | Discovered new exit (range 35) 16617 | -2/Garrison | Discovered new exit (range 19) 16617 | -2/Garrison | Discovered new exit (range 31) 16868 | -2/Garrison | Triggered checkpoint 16889 | -2/Garrison | Garrison Relay disabled 16936 | -2/Garrison | Spotted Executioner 16944 | -2/Garrison | Assimilated Executioner with formatsys_high 16953 | -2/Garrison | Rewired Executioner 17136 | -2/Garrison | Triggered checkpoint 17140 | -2/Garrison | Entered Research 17140 | -2/Research | Accompanied by 7 allies 17165 | -2/Research | Discovered new exit (range 38) 17191 | -2/Research | Identified exit to Access 17324 | -2/Research | Spotted B-90 Cyclops 17329 | -2/Research | Allies destroyed B-90 Cyclops 17366 | -2/Research | Identified exit to Garrison 17366 | -2/Research | Entered Garrison 17366 | -2/Garrison | Accompanied by 8 allies 17384 | -2/Garrison | Triggered checkpoint 17416 | -2/Garrison | Triggered checkpoint 17424 | -2/Garrison | Garrison Relay disabled 17535 | -2/Garrison | Spotted B-90 Cyclops 17540 | -2/Garrison | Triggered checkpoint 17578 | -2/Garrison | Allies destroyed B-90 Cyclops 17595 | -2/Garrison | Found Prototype Processor 17595 | -2/Garrison | Identified Exp. Core Analyzer 17602 | -2/Garrison | Found Prototype Processor 17602 | -2/Garrison | Identified Exp. Targeting Computer 17650 | -2/Garrison | Triggered checkpoint 17668 | -2/Garrison | Triggered checkpoint 17689 | -2/Garrison | Garrison Relay disabled 17769 | -2/Garrison | Discovered exit to Access (range 12) 17806 | -2/Garrison | Triggered checkpoint 17836 | -2/Garrison | Triggered checkpoint 17845 | -2/Garrison | Garrison Relay disabled 17872 | -2/Garrison | Heavy support dispatched to Access 17927 | -2/Garrison | Discovered exit to Access (range 74) 17927 | -2/Garrison | Discovered exit to Access (range 38) 17927 | -2/Garrison | Discovered exit to Access (range 24) 18207 | -2/Garrison | Expanded RIF knowledge: Threat Obfuscation 18256 | -2/Garrison | Triggered checkpoint 18298 | -2/Garrison | Expanded RIF knowledge: Program Shield 18312 | -2/Garrison | Garrison Relay disabled 18349 | -2/Garrison | Found Antimissile System 18417 | -2/Garrison | Entered Access 18417 | -1/Access | Accompanied by 11 allies 18417 | -1/Access | Evolved 2 slots: Utility x2 18822 | -1/Access | Found Enh. Force Lance 19694 | -1/Access | Lost 9 parts (1p2n5u1w) 19853 | -1/Access | Spotted B-99 Colossus 20089 | -1/Access | Discovered new exit (range 7) 20098 | -1/Access | Entered Command 20184 | -1/Command | Lost 4 parts (1n2u1w) 20702 | -1/Command | System corruption reached 10% 20743 | -1/Command | Spotted M Guard 20744 | -1/Command | Spotted M Guard 20755 | -1/Command | Spotted Combat Programmer 20756 | -1/Command | Spotted Combat Programmer 20760 | -1/Command | Core integrity fell below 50% 20777 | -1/Command | Core integrity fell below 20% 20784 | -1/Command | Destroyed by Combat Programmer with EMDS Last Messages --------------- 20776_ Penetrated by EMDS Slug. 20776_ Adv. Weapon Cycler destroyed. 20776_ Penetrated by EMDS Slug. 20776_ Relay Coupler [Sentry] destroyed. 20777_ The unstable cave ceiling collapses. 20778_ System corrupted: Energy discharge (-23). 20778_ The unstable cave ceiling collapses. 20779_ Penetrated by EMDS Slug. 20779_ EMDS Slug penetrates Earth. 20780_ The unstable cave ceiling collapses. 20781_ Penetrated by EMDS Slug. 20781_ Knocked back. 20781_ Relay Coupler [Proto] destroyed. 20781_ Slug penetrates Combat Programmer. 20782_ Penetrated by EMDS Slug. 20782_ KE Penetrator destroyed. 20782_ Warlord 4Z-XS3 destroyed. 20782_ Hvy. Machine Gun destroyed. 20783_ The unstable cave ceiling collapses. 20784_ Penetrated by EMDS Slug. Map ----- +----------------------------------------------------+ | ????????????????????????????????????#!=%%#= # | | ????????????????????????????????????#![[=#! # | | ????????????????????????????????????#####% ### | | ????????????????????????????????????????##% #?? | | ?????????????????????????????????????????# #?? | | ?????????????????????????????????????????# #?? | | ?????????????????????????????????????????# #?? | | ???????????????????????????????????????### #?? | | ???????????????????????????????????????# # #?? | | ???????????????????????????????????????# ^^ ^#?? | | ???????????????????????????????????????# # #?? | | ?????????????????????????????????????????# #?? | | ?????????????????????????????????????????# #?? | | ?????????????????????????????????????????# #?? | | ?????????????????????????????????????????# #?? | | ?????????????????????????????????????????# ### | | ?????????????????????????????????????????# %[[ | | ?????????????????????????????????????????# %=% | | ????????????????####??#####?#####?#####??# [ | | ????????????????# ### ### #?# #??# | | ?????????#+++#### W W # W ### W #### | | ?????????# *= / | | ?????????# Y %%[ / | | ?????????# !%[ / | | ?????????# Y p = [=[= / | | ?????????# p @ ! *%! / | | ?????????# ## # W ### W ####### ### | | ???????????????## #?# #?????# #?? | | ????????????????## ###?#####?????# #?? | | ????????????????# # # ????????????# #?? | | ????????????????# ####???????????# #?? | | ????????????????# # #??????????????# #?? | | ????????????????# ### #####??????????????# #?? | | ????????????????# ??####??????????????????# #?? | | ????????????????# ?????????????????????????# #?? | | ????????????????# ?????????????????????????# #?? | | ????????????????# ??????????????????????????# #?? | | ????????????????# ??????????????????????????? #?? | | ????????????????# ??????????????????????????? #?? | | ????????????????#???????????????????????????? #?? | | ????????????????????????????????????????????? ??? | | ?????????????????????????????????????????????????? | | ?????????????????????????????????????????????????? | | ?????????????????????????????????????????????????? | | ?????????????????????????????????????????????????? | | ?????????????????????????????????????????????????? | | ?????????????????????????????????????????????????? | | ?????????????????????????????????????????????????? | | ?????????????????????????????????????????????????? | | ?????????????????????????????????????????????????? | +----------------------------------------------------+ Best States ------------- Heat Dissipation 90 Energy Generation 31 Energy Capacity 550 Matter Stores 350 Matter Capacity 350 Sight Range 23 Terrain Scan Density 10 Jamming Range 16 Cloak Strength 4 Power Amplification 30 Armor Coverage 1200 Resistance: TH 30 Core Shielding 20 Point Defense Rating 240 Weapon Cycling 25 Melee Speed Boost 20 Phase Shifting 15 Evasion (%) 65 Targeting Accuracy 12 Melee Accuracy 5 Target Analysis 12 Core Analysis 8 Recoil Reduction 4 Offensive Hacking 30 Defensive Hacking 10 Relay Coupler Types 10 Relay Coupler Value 386 Authchip Count 16 Item Schematics ----------------- Remote Datajack | -6/Factory | Scanalyzed Imp. Heavy Treads | -6/Factory | Scanalyzed Mni. Grenade Launcher | -6/Factory | Scanalyzed Robot Schematics ------------------ P-60 Hacker | -7/Factory | Hacked Fabricated ------------ P-60 Hacker | x2 | -7/Factory | Authchip P-60 Hacker | x2 | -7/Factory | Authchip P-60 Hacker | x2 | -7/Factory | Authchip P-60 Hacker | x2 | -7/Factory | Authchip P-60 Hacker | x2 | -7/Factory | Authchip P-60 Hacker | x2 | -7/Factory | Authchip P-60 Hacker | x2 | -7/Factory | Authchip P-60 Hacker | x2 | -7/Factory | Authchip P-60 Hacker | x2 | -7/Factory | Authchip Alien Tech Used ----------------- None Achievements -------------- War Machine Challenges ------------ None Game ------ Seed CouplerLightningAccelerator Manual? 0 Play Time 03:34:35 Cumulative 298.7 hours Start 2022.08.16 @ 23:54:13 End 2022.08.17 @ 16:19:48 Sessions 5 Manual Loads 0 Difficulty Rogue Special Mode None Game No. 338 Rogue 338 Adventurer 0 Explorer 0 Win Type - Total 11 Types 8/0/2/1/0/0/0/0/0 Lore% 74 Gallery% 87 Achievement% 76 Wizard Run 0 Options --------- ASCII 0 Keyboard 0 Movement Numpad Keybinds 0 Fullscreen 1 Font 18/Terminus Map View 76x50 Tactical HUD 1 Map Filters NONE Filters NONE Steam 1 RUN: 7a54ce20-b0a8-42a7-91fa-9fc333c4695c